[Event "*** Titled Tuesday Blitz"]
[Site "Chess.com"]
[Date "2019.04.02"]
[Round "7"]
[White "Zhuu96"]
[Black "emperor87"]
[Result "1-0"]
[WhiteElo "2958"]
[BlackElo "2703"]
[TimeControl "180+2"]
[EndTime "15:35:19 PDT"]
[Termination "Zhuu96 won by resignation"]

1. e4 {[%clk 0:03:01]} 1... c6 {[%clk 0:03:00.3]} 2. d4 {[%clk 0:03:01.4]} 2...
d5 {[%clk 0:03:01.4]} 3. exd5 {[%clk 0:03:03.2]} 3... cxd5 {[%clk 0:03:01.6]} 4.
Nf3 {[%clk 0:03:04.9]} 4... g6 {[%clk 0:03:02.7]} 5. Bf4 {[%clk 0:03:04.6]} 5...
Bg7 {[%clk 0:03:03.8]} 6. c3 {[%clk 0:03:05.5]} 6... Nf6 {[%clk 0:03:04.7]} 7.
Bd3 {[%clk 0:03:06.6]} 7... O-O {[%clk 0:03:05.3]} 8. h3 {[%clk 0:03:07]} 8...
Bf5 {[%clk 0:03:05.5]} 9. Bxf5 {[%clk 0:03:06.1]} 9... gxf5 {[%clk 0:03:07.4]}
10. O-O {[%clk 0:03:07.6]} 10... Nc6 {[%clk 0:03:07.1]} 11. Na3 {[%clk
0:03:09.2]} 11... e6 {[%clk 0:03:07.5]} 12. Nc2 {[%clk 0:03:06]} 12... Ne4
{[%clk 0:03:08.5]} 13. Ne3 {[%clk 0:03:07.1]} 13... Kh8 {[%clk 0:03:09.1]} 14.
Kh1 {[%clk 0:03:05.7]} 14... Rg8 {[%clk 0:03:10.3]} 15. Nd2 {[%clk 0:03:04.8]}
15... Qh4 {[%clk 0:03:08.6]} 16. Nxe4 {[%clk 0:03:04.6]} 16... fxe4 {[%clk
0:03:04.9]} 17. Bg3 {[%clk 0:03:03]} 17... Qh6 {[%clk 0:03:04.2]} 18. Ng4 {[%clk
0:03:02.7]} 18... Qg5 {[%clk 0:03:03.9]} 19. f4 {[%clk 0:03:02.3]} 19... Qg6
{[%clk 0:02:58.4]} 20. Bh2 {[%clk 0:02:55.8]} 20... f5 {[%clk 0:02:53.4]} 21.
Ne3 {[%clk 0:02:55.8]} 21... Bf6 {[%clk 0:02:52.7]} 22. g4 {[%clk 0:02:55.9]}
22... fxg4 {[%clk 0:02:51.5]} 23. hxg4 {[%clk 0:02:55.4]} 23... Raf8 {[%clk
0:02:25.2]} 24. Qd2 {[%clk 0:02:33.2]} 24... Rg7 {[%clk 0:02:24]} 25. f5 {[%clk
0:02:32.8]} 25... exf5 {[%clk 0:02:23.5]} 26. Nxf5 {[%clk 0:02:24.7]} 26... Rgf7
{[%clk 0:02:16.3]} 27. Nh6 {[%clk 0:02:24]} 27... Rd7 {[%clk 0:02:04.7]} 28. g5
{[%clk 0:02:23.9]} 28... Bg7 {[%clk 0:02:03.5]} 29. Rxf8+ {[%clk 0:02:22.6]}
29... Bxf8 {[%clk 0:02:04.5]} 30. Qf4 {[%clk 0:02:21.1]} 30... Bxh6 {[%clk
0:01:41.7]} 31. gxh6 {[%clk 0:02:21.7]} 31... Qf7 {[%clk 0:01:42.7]} 32. Rg1
{[%clk 0:02:17.5]} 32... Qxf4 {[%clk 0:01:40.5]} 33. Bxf4 {[%clk 0:02:18.7]}
33... Rf7 {[%clk 0:01:41.4]} 34. Bg5 {[%clk 0:02:14.4]} 34... Ne7 {[%clk
0:01:34.6]} 35. Kg2 {[%clk 0:01:57.6]} 35... Ng6 {[%clk 0:01:33.6]} 36. b3
{[%clk 0:01:11.5]} 36... Kg8 {[%clk 0:01:28.2]} 37. c4 {[%clk 0:01:11.4]} 37...
dxc4 {[%clk 0:01:29.1]} 38. bxc4 {[%clk 0:01:11]} 38... Rf5 {[%clk 0:01:30.1]}
39. Kh3 {[%clk 0:01:07.5]} 39... Rf3+ {[%clk 0:01:29.7]} 40. Kg4 {[%clk
0:01:07.5]} 40... Rd3 {[%clk 0:01:24.4]} 41. d5 {[%clk 0:01:01.6]} 41... Rf3
{[%clk 0:01:15.5]} 42. Re1 {[%clk 0:00:54.6]} 42... Ne5+ {[%clk 0:01:15.3]} 43.
Kh4 {[%clk 0:00:55.9]} 43... Nxc4 {[%clk 0:00:33]} 44. Rxe4 {[%clk 0:00:55.5]}
44... Nd6 {[%clk 0:00:33.9]} 45. Re6 {[%clk 0:00:55.6]} 45... Nf5+ {[%clk
0:00:33.2]} 46. Kg4 {[%clk 0:00:56.4]} 46... Nd4 {[%clk 0:00:32]} 47. Re8+
{[%clk 0:00:54]} 47... Rf8 {[%clk 0:00:32]} 48. Re7 {[%clk 0:00:50.3]} 48... Rf7
{[%clk 0:00:33]} 49. Re4 {[%clk 0:00:36.3]} 49... Nb5 {[%clk 0:00:32.4]} 50.
Re8+ {[%clk 0:00:36.6]} 50... Rf8 {[%clk 0:00:32.8]} 51. Re5 {[%clk 0:00:32.7]}
51... Rf7 {[%clk 0:00:31.9]} 52. Be7 {[%clk 0:00:33.1]} 52... Rf1 {[%clk
0:00:25.9]} 53. d6 {[%clk 0:00:33]} 53... Nxd6 {[%clk 0:00:13]} 54. Bxd6 {[%clk
0:00:32.6]} 54... Rf6 {[%clk 0:00:14.5]} 55. Re8+ {[%clk 0:00:29.5]} 55... Kf7
{[%clk 0:00:14.3]} 56. Re7+ {[%clk 0:00:30.7]} 56... Kg6 {[%clk 0:00:15.1]} 57.
Bf4 {[%clk 0:00:28.5]} 57... Rf7 {[%clk 0:00:16]} 58. Rxf7 {[%clk 0:00:28.2]}
1-0

[Event "*** Titled Tuesday Blitz"]
[Site "Chess.com"]
[Date "2019.04.02"]
[Round "7"]
[White "1995Tiger"]
[Black "SaraciNderim"]
[Result "1/2-1/2"]
[WhiteElo "2072"]
[BlackElo "2716"]
[TimeControl "180+2"]
[EndTime "15:35:24 PDT"]
[Termination "Game drawn by stalemate"]

1. e4 {[%clk 0:03:01.9]} 1... c5 {[%clk 0:03:00.2]} 2. Nf3 {[%clk 0:03:02.6]}
2... d6 {[%clk 0:02:58.9]} 3. d3 {[%clk 0:03:00.7]} 3... Nc6 {[%clk 0:02:59]} 4.
g3 {[%clk 0:03:02]} 4... g6 {[%clk 0:02:58.9]} 5. Bg2 {[%clk 0:03:03.7]} 5...
Bg7 {[%clk 0:03:00.5]} 6. O-O {[%clk 0:03:05.3]} 6... Nf6 {[%clk 0:03:00.4]} 7.
c3 {[%clk 0:03:07]} 7... O-O {[%clk 0:03:01.1]} 8. Re1 {[%clk 0:03:08.5]} 8...
Rb8 {[%clk 0:03:01.7]} 9. d4 {[%clk 0:03:09.3]} 9... cxd4 {[%clk 0:03:02.6]} 10.
cxd4 {[%clk 0:03:10.2]} 10... d5 {[%clk 0:03:03.9]} 11. e5 {[%clk 0:03:10.7]}
11... Nd7 {[%clk 0:03:03.9]} 12. Nc3 {[%clk 0:03:04.5]} 12... Nb6 {[%clk
0:03:04.6]} 13. Bf4 {[%clk 0:02:59]} 13... Ra8 {[%clk 0:03:04]} 14. h4 {[%clk
0:02:51.4]} 14... Bg4 {[%clk 0:03:04.5]} 15. Rc1 {[%clk 0:02:27.4]} 15... Rc8
{[%clk 0:03:03]} 16. b3 {[%clk 0:02:28]} 16... h5 {[%clk 0:02:59.5]} 17. Qd2
{[%clk 0:02:28.4]} 17... Bxf3 {[%clk 0:02:59.7]} 18. Bxf3 {[%clk 0:02:28.8]}
18... e6 {[%clk 0:02:55.6]} 19. Bg5 {[%clk 0:02:27.2]} 19... Ne7 {[%clk
0:02:53.6]} 20. Nb5 {[%clk 0:02:21.7]} 20... Qd7 {[%clk 0:02:53.4]} 21. Nd6
{[%clk 0:02:15.4]} 21... Rxc1 {[%clk 0:02:45.7]} 22. Rxc1 {[%clk 0:02:15.1]}
22... Nec8 {[%clk 0:02:42.6]} 23. Qb4 {[%clk 0:00:34.7]} 23... Nxd6 {[%clk
0:02:23.8]} 24. Qxd6 {[%clk 0:00:34.8]} 24... Qb5 {[%clk 0:01:16.9]} 25. Rc7
{[%clk 0:00:32.3]} 25... Qd3 {[%clk 0:01:17.4]} 26. Kg2 {[%clk 0:00:25.9]} 26...
Qxd4 {[%clk 0:01:18.3]} 27. Bf4 {[%clk 0:00:25.9]} 27... Nc8 {[%clk 0:00:58.9]}
28. Qd7 {[%clk 0:00:26.8]} 28... Nb6 {[%clk 0:00:57.2]} 29. Qd6 {[%clk
0:00:27.9]} 29... Qb2 {[%clk 0:00:53.7]} 30. Rxb7 {[%clk 0:00:27.6]} 30... Qxa2
{[%clk 0:00:54.6]} 31. Bg5 {[%clk 0:00:21.3]} 31... Qxb3 {[%clk 0:00:53.9]} 32.
Bf6 {[%clk 0:00:22.3]} 32... Bxf6 {[%clk 0:00:42]} 33. exf6 {[%clk 0:00:21.7]}
33... Qc3 {[%clk 0:00:43.1]} 34. Rb8 {[%clk 0:00:16.7]} 34... Rxb8 {[%clk
0:00:38.9]} 35. Qxb8+ {[%clk 0:00:17.7]} 35... Kh7 {[%clk 0:00:40.1]} 36. Qxa7
{[%clk 0:00:17.8]} 36... Qxf6 {[%clk 0:00:13.8]} 37. Qxb6 {[%clk 0:00:19]} 37...
g5 {[%clk 0:00:09.1]} 38. hxg5 {[%clk 0:00:18.9]} 38... Qxg5 {[%clk 0:00:11]}
39. Qc7 {[%clk 0:00:18.7]} 39... Kg7 {[%clk 0:00:10]} 40. Qc3+ {[%clk
0:00:18.1]} 40... Kg6 {[%clk 0:00:08.4]} 41. Qd3+ {[%clk 0:00:19.1]} 41... Kg7
{[%clk 0:00:09.3]} 42. Qd4+ {[%clk 0:00:19.6]} 42... Kg6 {[%clk 0:00:10.5]} 43.
Qd3+ {[%clk 0:00:20]} 43... Kg7 {[%clk 0:00:09.1]} 44. Be2 {[%clk 0:00:19.2]}
44... h4 {[%clk 0:00:09.8]} 45. Qd4+ {[%clk 0:00:20.1]} 45... e5 {[%clk
0:00:09.8]} 46. Qxh4 {[%clk 0:00:21.3]} 46... Qxh4 {[%clk 0:00:10.6]} 47. gxh4
{[%clk 0:00:22.7]} 47... f5 {[%clk 0:00:12]} 48. Bb5 {[%clk 0:00:20.8]} 48...
Kf6 {[%clk 0:00:13]} 49. Bc6 {[%clk 0:00:21.6]} 49... d4 {[%clk 0:00:14.2]} 50.
Kf3 {[%clk 0:00:22.3]} 50... Kg6 {[%clk 0:00:11.5]} 51. Be8+ {[%clk 0:00:23.2]}
51... Kf6 {[%clk 0:00:12.6]} 52. h5 {[%clk 0:00:19.1]} 52... Kg5 {[%clk
0:00:13.5]} 53. Bg6 {[%clk 0:00:20.2]} 53... e4+ {[%clk 0:00:11.3]} 54. Ke2
{[%clk 0:00:20.9]} 54... e3 {[%clk 0:00:12.4]} 55. fxe3 {[%clk 0:00:17.7]} 55...
dxe3 {[%clk 0:00:13.4]} 56. Kxe3 {[%clk 0:00:19.1]} 56... Kh6 {[%clk 0:00:13.2]}
57. Kf4 {[%clk 0:00:19.7]} 57... Kg7 {[%clk 0:00:14.7]} 58. Ke5 {[%clk
0:00:20.8]} 58... Kh8 {[%clk 0:00:16.6]} 59. Kxf5 {[%clk 0:00:20.7]} 59... Kg8
{[%clk 0:00:17.9]} 60. h6 {[%clk 0:00:22.1]} 60... Kh8 {[%clk 0:00:19.2]} 61.
Kf6 {[%clk 0:00:23.8]} 61... Kg8 {[%clk 0:00:20.5]} 62. h7+ {[%clk 0:00:25.1]}
62... Kh8 {[%clk 0:00:22]} 63. Kf7 {[%clk 0:00:26.7]} 1/2-1/2

[Event "*** Titled Tuesday Blitz"]
[Site "Chess.com"]
[Date "2019.04.02"]
[Round "7"]
[White "RayRobson"]
[Black "Anahita_Gholami"]
[Result "0-1"]
[WhiteElo "2848"]
[BlackElo "2719"]
[TimeControl "180+2"]
[EndTime "15:35:26 PDT"]
[Termination "Anahita_Gholami won on time"]

1. e4 {[%clk 0:03:01.9]} 1... e5 {[%clk 0:03:00.7]} 2. Nf3 {[%clk 0:03:02.6]}
2... Nc6 {[%clk 0:03:01.9]} 3. Bb5 {[%clk 0:03:03.6]} 3... a6 {[%clk 0:03:02.9]}
4. Ba4 {[%clk 0:03:05]} 4... Nf6 {[%clk 0:03:02.2]} 5. O-O {[%clk 0:03:06.1]}
5... b5 {[%clk 0:03:03.8]} 6. Bb3 {[%clk 0:03:06.1]} 6... Bb7 {[%clk 0:03:05.7]}
7. d3 {[%clk 0:02:59.5]} 7... Be7 {[%clk 0:03:06.3]} 8. c3 {[%clk 0:02:51.3]}
8... O-O {[%clk 0:03:06.3]} 9. Nbd2 {[%clk 0:02:44.3]} 9... d5 {[%clk
0:03:06.7]} 10. Re1 {[%clk 0:02:39.6]} 10... dxe4 {[%clk 0:02:06.3]} 11. dxe4
{[%clk 0:02:40.4]} 11... h6 {[%clk 0:02:03.5]} 12. Qe2 {[%clk 0:02:31]} 12...
Bd6 {[%clk 0:02:00.1]} 13. Nf1 {[%clk 0:02:28.5]} 13... Ne7 {[%clk 0:01:55.6]}
14. Ng3 {[%clk 0:02:26.2]} 14... Ng6 {[%clk 0:01:46.6]} 15. Bc2 {[%clk
0:02:14.1]} 15... c5 {[%clk 0:01:41.7]} 16. Nf5 {[%clk 0:02:06.6]} 16... Qb6
{[%clk 0:01:36.3]} 17. h3 {[%clk 0:02:02.9]} 17... Rfd8 {[%clk 0:01:31.7]} 18.
Nh2 {[%clk 0:01:27.8]} 18... c4 {[%clk 0:01:28.7]} 19. Nxd6 {[%clk 0:01:10.2]}
19... Qxd6 {[%clk 0:01:25.7]} 20. Nf1 {[%clk 0:01:03.6]} 20... a5 {[%clk
0:01:20.2]} 21. Ng3 {[%clk 0:01:03.5]} 21... a4 {[%clk 0:01:14.6]} 22. a3 {[%clk
0:01:04.4]} 22... Qc7 {[%clk 0:01:06]} 23. Nf5 {[%clk 0:00:53.2]} 23... Bc8
{[%clk 0:01:03.4]} 24. Qf3 {[%clk 0:00:37.6]} 24... Bxf5 {[%clk 0:00:59.2]} 25.
exf5 {[%clk 0:00:39.5]} 25... Nf4 {[%clk 0:00:58.1]} 26. Bxf4 {[%clk 0:00:39.2]}
26... exf4 {[%clk 0:01:00]} 27. Re2 {[%clk 0:00:37.1]} 27... Rd5 {[%clk
0:00:51.7]} 28. Be4 {[%clk 0:00:27]} 28... Nxe4 {[%clk 0:00:50.8]} 29. Qxe4
{[%clk 0:00:25.6]} 29... Rad8 {[%clk 0:00:45.8]} 30. Rae1 {[%clk 0:00:26.1]}
30... Qd6 {[%clk 0:00:39.2]} 31. Qf3 {[%clk 0:00:19.1]} 31... Rxf5 {[%clk
0:00:34.7]} 32. Re8+ {[%clk 0:00:13.5]} 32... Rxe8 {[%clk 0:00:36]} 33. Rxe8+
{[%clk 0:00:15.3]} 33... Kh7 {[%clk 0:00:37.7]} 34. Qe4 {[%clk 0:00:10.3]} 34...
g6 {[%clk 0:00:38.6]} 35. f3 {[%clk 0:00:08.3]} 35... Kg7 {[%clk 0:00:37]} 36.
Kh2 {[%clk 0:00:09.3]} 36... Rd5 {[%clk 0:00:35]} 37. Rc8 {[%clk 0:00:06.3]}
37... Qe6 {[%clk 0:00:32.4]} 38. Qxe6 {[%clk 0:00:04.7]} 38... fxe6 {[%clk
0:00:34.3]} 39. Rb8 {[%clk 0:00:03.8]} 39... Kf6 {[%clk 0:00:34.3]} 40. h4
{[%clk 0:00:04.8]} 40... g5 {[%clk 0:00:32.4]} 41. Kh3 {[%clk 0:00:05.9]} 41...
gxh4 {[%clk 0:00:29.6]} 42. Kxh4 {[%clk 0:00:06.2]} 42... Rd2 {[%clk 0:00:28.5]}
43. Rxb5 {[%clk 0:00:05.9]} 43... Rxg2 {[%clk 0:00:29.5]} 44. Rb4 {[%clk
0:00:06]} 44... Kf5 {[%clk 0:00:28.4]} 45. Kh3 {[%clk 0:00:05.6]} 45... Rg3+
{[%clk 0:00:29.4]} 46. Kh2 {[%clk 0:00:07.2]} 46... Rxf3 {[%clk 0:00:31.3]} 47.
Rxa4 {[%clk 0:00:06.3]} 47... Rf2+ {[%clk 0:00:30.3]} 48. Kh3 {[%clk 0:00:07.7]}
48... e5 {[%clk 0:00:22.7]} 49. Rxc4 {[%clk 0:00:08.1]} 49... Rxb2 {[%clk
0:00:20]} 50. a4 {[%clk 0:00:09.1]} 50... f3 {[%clk 0:00:18.6]} 51. Kg3 {[%clk
0:00:09.5]} 51... e4 {[%clk 0:00:19.1]} 52. Rc5+ {[%clk 0:00:10.5]} 52... Ke6
{[%clk 0:00:20.3]} 53. Rh5 {[%clk 0:00:05.6]} 53... Rg2+ {[%clk 0:00:20.5]} 54.
Kf4 {[%clk 0:00:02.2]} 54... f2 {[%clk 0:00:21.3]} 55. Rxh6+ {[%clk 0:00:03.4]}
55... Kd5 {[%clk 0:00:21.6]} 56. c4+ {[%clk 0:00:04.2]} 56... Kc5 {[%clk
0:00:21.9]} 57. Rh5+ {[%clk 0:00:03.1]} 57... Kxc4 {[%clk 0:00:23.3]} 58. Rh1
{[%clk 0:00:03.7]} 58... Rg1 {[%clk 0:00:24.5]} 0-1

[Event "*** Titled Tuesday Blitz"]
[Site "Chess.com"]
[Date "2019.04.02"]
[Round "7"]
[White "Grischuk"]
[Black "joppie2"]
[Result "0-1"]
[WhiteElo "3045"]
[BlackElo "2811"]
[TimeControl "180+2"]
[EndTime "15:35:30 PDT"]
[Termination "joppie2 won by resignation"]

1. e4 {[%clk 0:03:01.9]} 1... c5 {[%clk 0:02:59.3]} 2. Nf3 {[%clk 0:02:57.7]}
2... d6 {[%clk 0:03:00.8]} 3. Bb5+ {[%clk 0:02:53.4]} 3... Bd7 {[%clk
0:03:01.1]} 4. Bxd7+ {[%clk 0:02:51.4]} 4... Nxd7 {[%clk 0:03:03]} 5. O-O {[%clk
0:02:50.8]} 5... Ngf6 {[%clk 0:03:02.7]} 6. Qe2 {[%clk 0:02:50.6]} 6... e6
{[%clk 0:03:03.7]} 7. c4 {[%clk 0:02:46.1]} 7... Ne5 {[%clk 0:02:59.7]} 8. b3
{[%clk 0:02:40]} 8... Be7 {[%clk 0:02:58.4]} 9. Bb2 {[%clk 0:02:41.1]} 9... Nfd7
{[%clk 0:02:53.9]} 10. Nxe5 {[%clk 0:02:32.8]} 10... dxe5 {[%clk 0:02:54.7]} 11.
f4 {[%clk 0:02:34.4]} 11... exf4 {[%clk 0:02:36]} 12. Bxg7 {[%clk 0:02:28]}
12... Rg8 {[%clk 0:02:37.4]} 13. Bb2 {[%clk 0:02:29.6]} 13... Bf6 {[%clk
0:02:37]} 14. e5 {[%clk 0:02:28.1]} 14... Bh8 {[%clk 0:02:36.1]} 15. Rxf4 {[%clk
0:02:22.8]} 15... Qg5 {[%clk 0:02:37]} 16. Re4 {[%clk 0:02:21]} 16... O-O-O
{[%clk 0:02:27.6]} 17. d3 {[%clk 0:02:06.5]} 17... Nxe5 {[%clk 0:02:05.3]} 18.
h4 {[%clk 0:01:17]} 18... Qh6 {[%clk 0:01:08.1]} 19. Bxe5 {[%clk 0:00:54.7]}
19... Bxe5 {[%clk 0:00:52.4]} 20. Rxe5 {[%clk 0:00:55.9]} 20... Qc1+ {[%clk
0:00:52.2]} 21. Qe1 {[%clk 0:00:36.2]} 21... Qb2 {[%clk 0:00:49]} 22. Rxc5+
{[%clk 0:00:30.8]} 22... Kd7 {[%clk 0:00:50.3]} 23. Nd2 {[%clk 0:00:30]} 23...
Qd4+ {[%clk 0:00:45.3]} 24. Qf2 {[%clk 0:00:31.3]} 24... Qxa1+ {[%clk
0:00:46.3]} 25. Kh2 {[%clk 0:00:33]} 25... f5 {[%clk 0:00:38]} 26. Nf3 {[%clk
0:00:31.1]} 26... Qf6 {[%clk 0:00:32.9]} 27. Rb5 {[%clk 0:00:26]} 27... b6
{[%clk 0:00:32]} 28. c5 {[%clk 0:00:27.6]} 28... bxc5 {[%clk 0:00:18]} 29. Qxc5
{[%clk 0:00:26]} 29... Ke8 {[%clk 0:00:19.5]} 30. Rb7 {[%clk 0:00:24.8]} 30...
Rg7 {[%clk 0:00:19.6]} 31. Qxa7 {[%clk 0:00:21.6]} 31... Rxb7 {[%clk 0:00:18.1]}
32. Qxb7 {[%clk 0:00:23.5]} 32... Rxd3 {[%clk 0:00:17.4]} 33. Qb5+ {[%clk
0:00:23.4]} 33... Rd7 {[%clk 0:00:18.5]} 34. a4 {[%clk 0:00:17.4]} 34... Ke7
{[%clk 0:00:18.2]} 35. a5 {[%clk 0:00:18.4]} 35... e5 {[%clk 0:00:17.7]} 36.
Qxe5+ {[%clk 0:00:08.5]} 36... Qxe5+ {[%clk 0:00:18.4]} 37. Nxe5 {[%clk
0:00:10.4]} 37... Rd5 {[%clk 0:00:15]} 38. Nc4 {[%clk 0:00:09.7]} 38... Kd8
{[%clk 0:00:08.3]} 39. Kg3 {[%clk 0:00:04.8]} 39... Rd4 {[%clk 0:00:06.3]} 40.
h5 {[%clk 0:00:04.1]} 40... Kc7 {[%clk 0:00:07.5]} 41. Kf3 {[%clk 0:00:05.2]}
41... Rd3+ {[%clk 0:00:07.8]} 42. Kf4 {[%clk 0:00:06.3]} 42... Rxb3 {[%clk
0:00:09.4]} 43. Kxf5 {[%clk 0:00:07]} 43... Rb5+ {[%clk 0:00:10.8]} 44. Kf6
{[%clk 0:00:07.7]} 44... Rxh5 {[%clk 0:00:11.1]} 45. g4 {[%clk 0:00:08.4]} 45...
Rc5 {[%clk 0:00:11.2]} 46. Ne5 {[%clk 0:00:07.8]} 46... Rxa5 {[%clk 0:00:12.7]}
47. g5 {[%clk 0:00:08.1]} 47... Rc5 {[%clk 0:00:10]} 48. Nd3 {[%clk 0:00:04.2]}
48... Rc3 {[%clk 0:00:09.8]} 49. Ne5 {[%clk 0:00:04.4]} 49... Kd6 {[%clk
0:00:10.4]} 50. Nf7+ {[%clk 0:00:05.4]} 50... Kd5 {[%clk 0:00:11.9]} 51. Kg7
{[%clk 0:00:06.4]} 51... Ke6 {[%clk 0:00:11.4]} 52. Nh6 {[%clk 0:00:06.2]} 52...
Rc7+ {[%clk 0:00:11.2]} 53. Kg8 {[%clk 0:00:05.9]} 53... Ke5 {[%clk 0:00:12.6]}
54. Nf7+ {[%clk 0:00:05.9]} 54... Kf5 {[%clk 0:00:13.7]} 55. Kf8 {[%clk
0:00:04.4]} 55... Rxf7+ {[%clk 0:00:14.4]} 56. Kxf7 {[%clk 0:00:05.5]} 56...
Kxg5 {[%clk 0:00:16.3]} 0-1

[Event "*** Titled Tuesday Blitz"]
[Site "Chess.com"]
[Date "2019.04.02"]
[Round "7"]
[White "Touching3200"]
[Black "Roenko_Artur"]
[Result "1-0"]
[WhiteElo "2390"]
[BlackElo "2293"]
[TimeControl "180+2"]
[EndTime "15:35:34 PDT"]
[Termination "Touching3200 won by resignation"]

1. c4 {[%clk 0:03:01.9]} 1... e6 {[%clk 0:03:00.5]} 2. Nc3 {[%clk 0:03:00.8]}
2... d5 {[%clk 0:03:01.7]} 3. d4 {[%clk 0:03:01.7]} 3... c6 {[%clk 0:03:02.6]}
4. Qb3 {[%clk 0:03:00.1]} 4... Nf6 {[%clk 0:03:01.7]} 5. Nf3 {[%clk 0:03:01.5]}
5... Bd6 {[%clk 0:03:00.2]} 6. g3 {[%clk 0:03:02.4]} 6... O-O {[%clk 0:02:59.4]}
7. Bg2 {[%clk 0:03:03.7]} 7... Nbd7 {[%clk 0:02:57.7]} 8. O-O {[%clk 0:03:04.5]}
8... b6 {[%clk 0:02:47.5]} 9. Nd2 {[%clk 0:02:50.9]} 9... Bb7 {[%clk 0:02:46]}
10. e4 {[%clk 0:02:51.8]} 10... dxe4 {[%clk 0:02:39.7]} 11. Ndxe4 {[%clk
0:02:52.6]} 11... Be7 {[%clk 0:02:36.7]} 12. Bf4 {[%clk 0:02:50.7]} 12... Nxe4
{[%clk 0:02:30.9]} 13. Nxe4 {[%clk 0:02:50.9]} 13... Nf6 {[%clk 0:02:31.2]} 14.
Rad1 {[%clk 0:02:50.2]} 14... Nxe4 {[%clk 0:02:21.4]} 15. Bxe4 {[%clk
0:02:50.8]} 15... Bf6 {[%clk 0:02:20.8]} 16. Qd3 {[%clk 0:02:38.7]} 16... h6
{[%clk 0:02:09.7]} 17. h4 {[%clk 0:02:38.7]} 17... Qd7 {[%clk 0:02:01]} 18. Qf3
{[%clk 0:02:34.1]} 18... Rac8 {[%clk 0:01:44]} 19. Bxh6 {[%clk 0:02:34.2]} 19...
Ba8 {[%clk 0:01:32.1]} 20. Bg5 {[%clk 0:02:22.8]} 20... Bxd4 {[%clk 0:01:26.5]}
21. Qh5 {[%clk 0:01:54.4]} 21... f5 {[%clk 0:01:23.8]} 22. Bc2 {[%clk
0:01:53.1]} 22... c5 {[%clk 0:01:19.4]} 23. Kh2 {[%clk 0:01:52.6]} 23... Qc6
{[%clk 0:01:15.3]} 24. f3 {[%clk 0:01:53.3]} 24... Bxb2 {[%clk 0:00:56.7]} 25.
Bf4 {[%clk 0:01:47.6]} 25... Bd4 {[%clk 0:00:47.3]} 26. g4 {[%clk 0:01:46.8]}
26... Qe8 {[%clk 0:00:32.7]} 27. Qxe8 {[%clk 0:01:41.7]} 27... Rcxe8 {[%clk
0:00:32.5]} 28. Rde1 {[%clk 0:01:34.1]} 28... fxg4 {[%clk 0:00:21.8]} 29. fxg4
{[%clk 0:01:34.8]} 29... e5 {[%clk 0:00:23.1]} 30. Bg5 {[%clk 0:01:35.6]} 30...
Rxf1 {[%clk 0:00:23.1]} 31. Rxf1 {[%clk 0:01:36.5]} 31... e4 {[%clk 0:00:24.4]}
32. Re1 {[%clk 0:01:34.1]} 32... e3 {[%clk 0:00:25.1]} 33. Bg6 {[%clk
0:01:34.7]} 33... Re6 {[%clk 0:00:20.4]} 34. Bf5 {[%clk 0:01:35.4]} 34... Re8
{[%clk 0:00:19.2]} 35. Bg6 {[%clk 0:01:35.8]} 35... Re6 {[%clk 0:00:17.7]} 36.
Bf5 {[%clk 0:01:36.8]} 36... Re8 {[%clk 0:00:15.4]} 37. Kg3 {[%clk 0:01:37]}
37... Be5+ {[%clk 0:00:14.7]} 38. Bf4 {[%clk 0:01:37.1]} 38... Bxf4+ {[%clk
0:00:15.7]} 39. Kxf4 {[%clk 0:01:38.4]} 39... e2 {[%clk 0:00:16.4]} 40. Bd3
{[%clk 0:01:39.6]} 40... Rd8 {[%clk 0:00:15.8]} 41. Bxe2 {[%clk 0:01:38.2]}
41... Re8 {[%clk 0:00:16.8]} 42. Kg3 {[%clk 0:01:35.1]} 42... Re4 {[%clk
0:00:14.9]} 43. Kf2 {[%clk 0:01:33.8]} 43... Rf4+ {[%clk 0:00:16]} 44. Ke3
{[%clk 0:01:34.7]} 44... Re4+ {[%clk 0:00:17.1]} 45. Kd3 {[%clk 0:01:35.2]}
45... Re5 {[%clk 0:00:14.8]} 46. Rf1 {[%clk 0:01:34.5]} 46... Be4+ {[%clk
0:00:14]} 47. Kd2 {[%clk 0:01:35.4]} 47... Bg6 {[%clk 0:00:11.2]} 48. h5 {[%clk
0:01:36.1]} 48... Bf7 {[%clk 0:00:12.2]} 49. Bd3 {[%clk 0:01:34]} 49... Re7
{[%clk 0:00:11.7]} 50. Rf5 {[%clk 0:01:32.6]} 50... Rd7 {[%clk 0:00:11.6]} 51.
Kc3 {[%clk 0:01:33.5]} 51... Rd4 {[%clk 0:00:12.4]} 52. Rg5 {[%clk 0:01:26.9]}
52... Kf8 {[%clk 0:00:10.8]} 53. a4 {[%clk 0:01:22.5]} 53... a5 {[%clk
0:00:09.6]} 54. Be2 {[%clk 0:01:22]} 54... Re4 {[%clk 0:00:08.7]} 55. Bd3 {[%clk
0:01:17.6]} 55... Re1 {[%clk 0:00:07.4]} 56. Rf5 {[%clk 0:01:15.6]} 56... Ke7
{[%clk 0:00:07.8]} 57. Rf4 {[%clk 0:01:15.1]} 57... Be6 {[%clk 0:00:07.1]} 58.
g5 {[%clk 0:01:11.5]} 58... Rh1 {[%clk 0:00:06.2]} 59. h6 {[%clk 0:01:12.6]}
59... gxh6 {[%clk 0:00:06.6]} 60. g6 {[%clk 0:01:14]} 60... Rg1 {[%clk 0:00:08]}
61. Rh4 {[%clk 0:01:14.2]} 61... Rg3 {[%clk 0:00:06.7]} 62. Kd2 {[%clk
0:01:10.5]} 62... Kf6 {[%clk 0:00:05.4]} 63. Rxh6 {[%clk 0:01:10.9]} 63... Rg2+
{[%clk 0:00:04.6]} 64. Kc3 {[%clk 0:01:10.2]} 64... Kg7 {[%clk 0:00:02.7]} 65.
Rh7+ {[%clk 0:01:11.2]} 65... Kg8 {[%clk 0:00:03.8]} 66. Re7 {[%clk 0:01:10.8]}
66... Bh3 {[%clk 0:00:03.2]} 67. Be4 {[%clk 0:01:11.3]} 67... Rg3+ {[%clk
0:00:04.3]} 68. Kd2 {[%clk 0:01:12.2]} 68... Bf1 {[%clk 0:00:04.4]} 69. Bd5+
{[%clk 0:01:12.5]} 69... Kf8 {[%clk 0:00:04.7]} 70. Rf7+ {[%clk 0:01:13.6]} 1-0